bitfinex-derivatives/quotes_BTCF0:USTF0_20241021
["timestamp","ask_amount","ask_price","bid_price","bid_amount"]
[1729551168257,0.006,67793.0,67792.0,0.18378]
[1729551168456,0.006,67793.0,67792.0,0.24274666]
[1729551169167,0.006,67793.0,67792.0,0.18378]
[1729551169368,0.073778,67795.0,67794.0,0.073778]
[1729551169670,0.073778,67795.0,67794.0,0.434578]
[1729551171071,0.073778,67795.0,67794.0,0.435578]
[1729551171870,0.073778,67795.0,67794.0,0.436578]
[1729551172354,0.074778,67795.0,67794.0,0.434578]
[1729551172560,0.1048,67801.0,67794.0,0.3608]
[1729551172755,0.178571,67801.0,67800.0,0.3608]
[1729551173065,0.178571,67801.0,67800.0,0.434572]
[1729551173959,0.182571,67801.0,67800.0,0.434572]
[1729551175060,0.187571,67801.0,67800.0,0.434572]
[1729551175268,0.082771,67801.0,67800.0,0.434572]
[1729551176269,0.078771,67801.0,67800.0,0.434572]
[1729551176467,0.082771,67801.0,67800.0,0.434572]
[1729551180369,0.082771,67801.0,67800.0,0.3608]
[1729551180672,0.081771,67801.0,67800.0,0.3608]
[1729551181459,0.080771,67801.0,67800.0,0.434572]
[1729551181661,0.076771,67801.0,67800.0,0.434572]
[1729551181861,0.081771,67801.0,67800.0,0.434572]
[1729551182274,0.082771,67801.0,67800.0,0.434572]
[1729551183175,0.082771,67801.0,67800.0,0.3608]
[1729551185268,0.192771,67801.0,67794.0,0.3608]
[1729551185578,0.183777,67795.0,67794.0,0.3608]
[1729551185775,0.183777,67795.0,67794.0,0.434578]
[1729551186577,0.183777,67795.0,67794.0,0.436578]
[1729551188372,0.183777,67795.0,67794.0,0.438578]
[1729551188975,0.189777,67795.0,67794.0,0.3638]
[1729551190070,0.189777,67795.0,67794.0,0.3618]
[1729551190270,0.194777,67795.0,67794.0,0.3618]
[1729551190673,1.1141298,67795.0,67788.0,0.3608]
[1729551190863,1.1141298,67795.0,67782.0,0.3608]
[1729551190864,0.073786,67787.0,67782.0,0.3608]
[1729551191068,0.186026,67787.0,67782.0,0.3608]
[1729551191974,0.186026,67787.0,67786.0,0.0052125]
[1729551192177,0.0615,67794.0,67786.0,0.0052125]
[1729551192471,0.073781,67791.0,67790.0,0.11]
[1729551192674,0.183781,67791.0,67790.0,0.11]
[1729551192874,0.073784,67789.0,67788.0,0.435584]
[1729551193176,0.183784,67789.0,67788.0,0.435584]
[1729551193379,0.183784,67789.0,67788.0,0.434584]
[1729551194586,0.187784,67789.0,67788.0,0.3608]
[1729551195182,0.303024,67789.0,67788.0,0.3608]
[1729551195880,0.303024,67789.0,67788.0,0.434585]
[1729551196281,0.080784,67789.0,67788.0,0.434585]
[1729551196582,0.11924,67789.0,67788.0,0.434585]
[1729551196786,0.11924,67789.0,67788.0,0.466985]
[1729551197372,0.007,67789.0,67788.0,0.466985]
[1729551197578,0.003,67789.0,67788.0,0.466985]
[1729551197893,0.11224,67794.0,67793.0,0.073779]
[1729551198075,0.11224,67794.0,67793.0,0.183779]
[1729551198274,0.186016,67796.0,67794.0,0.073778]
[1729551198482,0.186016,67796.0,67795.0,0.434577]
[1729551199980,0.11724,67796.0,67795.0,0.434577]
[1729551200394,0.11924,67796.0,67795.0,0.434577]
[1729551200780,0.0327,67802.0,67795.0,0.434577]
[1729551200781,0.073756,67815.0,67796.0,0.073775]
[1729551200983,0.073764,67807.0,67806.0,0.11]
[1729551201181,0.073764,67807.0,67803.0,0.073768]
[1729551201182,0.073767,67804.0,67803.0,0.073768]
[1729551201377,0.183767,67804.0,67803.0,0.073768]
[1729551202295,0.073771,67801.0,67800.0,0.11]
[1729551202480,0.183771,67801.0,67800.0,0.11]
[1729551202682,0.183771,67801.0,67799.0,0.073772]
[1729551203493,0.183771,67801.0,67800.0,0.073772]
[1729551203791,0.186771,67801.0,67800.0,0.073772]
[1729551204289,0.183771,67801.0,67800.0,0.073772]
[1729551204499,0.186771,67801.0,67800.0,0.073772]
[1729551204996,0.183771,67801.0,67800.0,0.073772]
[1729551205198,0.187771,67801.0,67800.0,0.073772]
[1729551208687,0.187771,67801.0,67800.0,0.434572]
[1729551210597,0.187771,67801.0,67800.0,0.073772]
[1729551210783,0.187771,67801.0,67800.0,0.434572]
[1729551225407,0.187771,67801.0,67800.0,0.3608]
[1729551227496,0.187771,67801.0,67800.0,0.40500902]
[1729551228714,0.187771,67801.0,67800.0,0.434572]
[1729551235903,0.187771,67801.0,67800.0,0.47882565]
[1729551236102,0.187771,67801.0,67800.0,0.434572]
[1729551236611,0.187771,67801.0,67800.0,0.47882565]
[1729551237501,0.187771,67801.0,67800.0,0.434572]
[1729551237701,0.187771,67801.0,67800.0,0.47882565]
[1729551238813,0.187771,67801.0,67800.0,0.434572]
[1729551243107,0.077771,67801.0,67800.0,0.434572]
[1729551244219,0.07378,67792.0,67776.0,0.3608]
[1729551244414,0.654586,67787.0,67780.0,0.105793]
[1729551244606,0.544586,67787.0,67780.0,0.105793]
[1729551245699,0.544586,67787.0,67786.0,0.00721258]
[1729551245899,0.652866,67787.0,67786.0,0.00721258]
[1729551246304,0.652866,67787.0,67786.0,0.00221258]
[1729551246505,0.652866,67787.0,67786.0,0.00621258]
[1729551249916,0.544586,67787.0,67786.0,0.00621258]
[1729551250214,0.652866,67787.0,67786.0,0.00621258]
[1729551252106,0.652866,67787.0,67786.0,0.004]
[1729551254918,0.544586,67787.0,67786.0,0.004]
[1729551255111,0.652866,67787.0,67786.0,0.004]
[1729551256619,0.542866,67787.0,67786.0,0.004]
[1729551256921,0.652866,67787.0,67786.0,0.004]
[1729551258620,0.652866,67787.0,67786.0,0.077787]
[1729551260516,0.652866,67787.0,67786.0,0.004]
[1729551263529,0.652866,67787.0,67786.0,0.077779]
[1729551263824,0.292066,67787.0,67786.0,0.438579]
[1729551264036,0.00621017,67792.0,67786.0,0.3648]
[1729551264234,0.46908,67793.0,67791.0,0.11]
[1729551264523,0.132151,67795.0,67794.0,0.073768]
[1729551264724,0.132151,67795.0,67794.0,0.183768]
[1729551265028,0.00621307,67801.0,67800.0,0.073764]
[1729551265242,0.073755,67809.0,67807.0,0.073757]
[1729551265415,0.073755,67809.0,67808.0,0.5014]
[1729551265824,0.073755,67809.0,67808.0,0.575156]
[1729551266718,0.085755,67809.0,67808.0,0.576156]
[1729551267633,0.085755,67809.0,67808.0,0.5024]
[1729551267826,0.087755,67809.0,67808.0,0.5034]
[1729551269731,0.197755,67809.0,67808.0,0.3934]
[1729551271828,0.197755,67809.0,67808.0,0.0326]
[1729551272028,0.197755,67809.0,67808.0,0.3934]
[1729551273632,0.087755,67809.0,67808.0,0.577156]
[1729551276424,0.014,67809.0,67808.0,0.577156]
[1729551277027,0.014,67809.0,67808.0,0.467156]
[1729551277331,0.197754,67809.0,67808.0,0.467156]
[1729551281037,0.197754,67809.0,67808.0,0.577156]
[1729551284033,0.197754,67809.0,67808.0,0.216356]
[1729551284233,0.197754,67809.0,67808.0,0.577156]
[1729551286032,0.197754,67809.0,67808.0,0.216356]
[1729551286229,0.197754,67809.0,67808.0,0.577156]
[1729551290142,0.197754,67809.0,67808.0,0.467156]
[1729551290348,0.197754,67809.0,67808.0,0.3628]
[1729551292731,0.087754,67809.0,67808.0,0.546556]
[1729551292945,0.014,67809.0,67808.0,0.546556]
[1729551299256,0.197762,67809.0,67808.0,0.436556]
[1729551304854,0.197762,67809.0,67808.0,0.002]
[1729551309656,0.26173218,67809.0,67808.0,0.002]
[1729551309957,0.197762,67809.0,67808.0,0.002]
[1729551310758,0.640202,67809.0,67808.0,0.002]
[1729551312555,0.640202,67809.0,67793.0,0.36301233]
[1729551312556,0.92724,67809.0,67793.0,0.36301233]
[1729551312756,0.11,67796.0,67795.0,0.073777]
[1729551312949,0.183776,67796.0,67795.0,0.073777]
[1729551313863,0.21292,67798.0,67797.0,0.073775]
[1729551314047,0.176694,67798.0,67797.0,0.183775]
[1729551315162,0.178694,67798.0,67797.0,0.183775]
[1729551315955,0.176694,67798.0,67797.0,0.183775]
[1729551316159,0.180694,67798.0,67797.0,0.183775]
[1729551316559,0.183694,67798.0,67797.0,0.183775]
[1729551317266,0.186694,67798.0,67797.0,0.184775]
[1729551318153,0.083774,67798.0,67797.0,0.184775]
[1729551318358,0.186694,67798.0,67797.0,0.184775]
[1729551321666,0.296694,67798.0,67797.0,0.184775]
[1729551321963,0.296694,67798.0,67797.0,0.074775]
[1729551324957,0.296694,67798.0,67797.0,0.001]
[1729551325664,0.657494,67798.0,67797.0,0.001]
[1729551326862,0.073778,67794.0,67793.0,0.00221233]
[1729551327062,0.183778,67794.0,67793.0,0.00221233]
[1729551327758,0.073783,67790.0,67789.0,0.0329]
[1729551328071,0.544583,67790.0,67789.0,0.0329]
[1729551328978,0.654583,67790.0,67789.0,0.002]
[1729551329184,1.097143,67790.0,67779.0,0.0329]
[1729551329474,0.183793,67780.0,67779.0,0.0329]
[1729551329775,0.284593,67780.0,67779.0,0.0329]
[1729551330879,0.284593,67780.0,67779.0,0.0389]
[1729551331379,0.284593,67780.0,67779.0,0.0449]
[1729551331961,0.284593,67780.0,67779.0,0.012]
[1729551332162,0.285593,67780.0,67779.0,0.012]
[1729551333273,0.285593,67780.0,67779.0,0.006]
[1729551333471,0.285593,67780.0,67779.0,0.011]
[1729551333789,0.285593,67780.0,67779.0,0.005]
[1729551333975,0.284593,67780.0,67779.0,0.01]
[1729551334874,0.29062903,67780.0,67779.0,0.01]
[1729551342183,0.65142903,67780.0,67779.0,0.01]
[1729551343079,0.65146903,67780.0,67779.0,0.01]
[1729551345276,0.65146903,67780.0,67779.0,0.005]
[1729551345577,0.65446903,67780.0,67772.0,0.00221307]
[1729551345777,0.073801,67773.0,67772.0,0.00221307]
[1729551347394,0.073801,67773.0,67772.0,0.00521307]
[1729551347892,0.073801,67773.0,67772.0,0.00821307]
[1729551348792,0.073801,67773.0,67772.0,0.08201507]
[1729551350690,0.174641,67773.0,67772.0,0.08201507]
[1729551354005,0.073801,67773.0,67772.0,0.08201507]
[1729551354185,0.174641,67773.0,67772.0,0.08201507]
[1729551358299,0.175521,67773.0,67772.0,0.08201507]
[1729551365410,0.536321,67773.0,67772.0,0.00821307]
[1729551368113,0.536321,67773.0,67772.0,0.08201507]
[1729551370116,0.434601,67773.0,67772.0,0.08201507]
[1729551370305,0.536321,67773.0,67772.0,0.08201507]
[1729551371322,0.434601,67773.0,67772.0,0.08201507]
[1729551371510,0.536321,67773.0,67772.0,0.08201507]
[1729551373304,0.536321,67773.0,67772.0,0.08830142]
[1729551374902,0.434601,67773.0,67772.0,0.08830142]
[1729551375198,0.073801,67773.0,67772.0,0.08830142]
[1729551377116,0.073801,67773.0,67772.0,0.08608835]
[1729551382220,0.073801,67773.0,67772.0,0.14512064]
[1729551383927,0.073801,67773.0,67772.0,0.08608835]
[1729551385321,0.175518,67777.0,67776.0,0.073797]
[1729551385616,0.175518,67777.0,67776.0,0.544597]
[1729551385919,0.175518,67777.0,67776.0,0.58886093]
[1729551386219,0.175518,67777.0,67776.0,0.544597]
[1729551386413,0.175518,67777.0,67776.0,0.5888605]
[1729551387208,0.176518,67777.0,67776.0,0.544597]
[1729551393925,0.001,67777.0,67776.0,0.544597]
[1729551395225,0.001,67777.0,67776.0,0.434597]
[1729551395821,0.074797,67777.0,67776.0,0.434597]
[1729551396023,0.073801,67773.0,67772.0,0.00096]
[1729551396219,0.073805,67769.0,67768.0,0.15036484]
[1729551396525,0.073805,67769.0,67768.0,0.106106]
[1729551396720,0.177765,67769.0,67768.0,0.0323]
[1729551396912,0.073809,67766.0,67765.0,0.11806784]
[1729551397117,0.183809,67766.0,67765.0,0.11806784]
[1729551397315,0.183809,67766.0,67765.0,0.073809]
[1729551398123,0.184809,67766.0,67765.0,0.082809]
[1729551398511,0.184809,67766.0,67765.0,0.092809]
[1729551402028,0.184809,67766.0,67765.0,0.15181258]
[1729551406235,0.184809,67766.0,67765.0,0.092809]
[1729551412433,0.184809,67766.0,67765.0,0.13704505]
[1729551413340,0.184809,67766.0,67765.0,1.592809]
[1729551415545,0.184809,67766.0,67765.0,0.073809]
[1729551416430,0.184809,67766.0,67765.0,1.573809]
[1729551417032,0.184809,67766.0,67762.0,0.54552575]
[1729551417033,0.073812,67763.0,67762.0,0.00096]
[1729551417234,0.293812,67763.0,67758.0,0.07397255]
[1729551417535,0.183816,67759.0,67758.0,0.05069228]
[1729551419553,0.183816,67759.0,67758.0,0.05269228]
[1729551419942,0.073816,67759.0,67758.0,0.05269228]
[1729551420245,0.073816,67759.0,67758.0,0.16269228]
[1729551420443,0.07393097,67759.0,67758.0,0.16269228]
[1729551420644,0.00011497,67759.0,67758.0,0.16269228]
[1729551420839,0.00011497,67759.0,67758.0,0.27269228]
[1729551421248,0.10124,67767.0,67758.0,0.60165829]
[1729551421441,0.10124,67767.0,67766.0,0.11]
[1729551421636,0.175048,67767.0,67766.0,0.073809]
[1729551421850,0.30345809,67767.0,67766.0,1.573809]
[1729551422048,0.01841009,67767.0,67766.0,1.573809]
[1729551422253,0.01845067,67767.0,67766.0,1.37997999]
[1729551422438,0.01845067,67767.0,67765.0,0.11]
[1729551422439,4.058e-05,67767.0,67765.0,0.11]
[1729551422854,4.058e-05,67767.0,67766.0,0.073809]
[1729551423443,0.01304058,67767.0,67766.0,0.08680779]
[1729551424050,0.01304058,67767.0,67766.0,0.07942392]
[1729551424249,0.01304058,67767.0,67766.0,0.11032392]
[1729551424749,0.00904058,67767.0,67766.0,0.11032392]
[1729551425353,0.00304058,67767.0,67766.0,0.10932392]
[1729551425651,0.00604058,67767.0,67766.0,0.10932392]
[1729551428552,0.175027,67786.0,67776.0,0.073798]
[1729551428760,0.175027,67786.0,67780.0,0.11]
[1729551428958,0.18114868,67786.0,67780.0,0.11]
[1729551429459,0.285027,67786.0,67780.0,0.183793]
[1729551429757,0.01321342,67781.0,67780.0,0.183793]
[1729551430057,0.01521342,67781.0,67780.0,0.183793]
[1729551430445,0.00521342,67781.0,67780.0,0.18840712]
[1729551430753,0.00921342,67781.0,67780.0,0.18840712]
[1729551430955,0.00921342,67781.0,67780.0,0.18840707]
[1729551431456,0.00921342,67781.0,67780.0,0.1884071]
[1729551431658,0.00521342,67781.0,67780.0,0.1884071]
[1729551431856,0.00721342,67781.0,67780.0,0.1884071]
[1729551432043,0.00421342,67781.0,67780.0,0.1884071]
[1729551432358,0.00521342,67781.0,67780.0,0.1884071]
[1729551432860,0.00521342,67781.0,67780.0,0.2208071]
[1729551434360,0.00521342,67781.0,67780.0,0.216193]
[1729551436761,0.00521342,67781.0,67780.0,0.33080684]
[1729551436948,0.00521342,67781.0,67780.0,0.22080684]
[1729551437861,0.00321342,67781.0,67780.0,0.22280684]
[1729551438361,0.00221342,67781.0,67780.0,0.22480684]
[1729551439155,0.00221342,67781.0,67780.0,0.22580684]
[1729551439357,0.00221342,67781.0,67780.0,0.22380684]
[1729551439550,0.00221342,67781.0,67780.0,0.22580684]
[1729551441364,0.00221342,67781.0,67780.0,0.33580684]
[1729551441550,0.00221342,67781.0,67780.0,0.22580684]
[1729551443762,0.00221342,67781.0,67780.0,0.22580663]
[1729551444158,0.00221342,67781.0,67780.0,0.221193]
[1729551448258,0.1059988,67794.0,67780.0,0.221193]
[1729551448463,0.1059988,67794.0,67793.0,0.183779]
[1729551448649,0.1797768,67794.0,67793.0,0.183779]
[1729551449263,0.073785,67788.0,67787.0,0.073786]
[1729551449461,0.073789,67784.0,67783.0,0.434589]
[1729551449663,0.073785,67788.0,67787.0,0.073786]
[1729551449867,0.073785,67788.0,67787.0,0.183786]
[1729551452372,0.077785,67788.0,67787.0,0.183786]
[1729551452765,0.082785,67788.0,67787.0,0.183786]
[1729551453970,0.009,67788.0,67787.0,0.183786]
[1729551455968,0.009,67788.0,67787.0,0.073786]
[1729551456577,0.009,67788.0,67787.0,0.07990691]
[1729551457465,0.009,67788.0,67787.0,0.18990691]
[1729551466971,0.009,67788.0,67787.0,0.07990691]
[1729551467171,0.009,67788.0,67787.0,1.57990691]
[1729551467873,0.009,67788.0,67787.0,0.07990691]
[1729551470078,0.009,67788.0,67787.0,0.0845202]
[1729551473184,0.30038178,67800.0,67799.0,0.073773]
[1729551473393,0.30038178,67800.0,67799.0,2.15918629]
[1729551473682,0.30038178,67800.0,67799.0,2.15918518]
[1729551474591,0.32838178,67800.0,67799.0,2.16018518]
[1729551476589,0.32838178,67800.0,67799.0,2.16649843]
[1729551476780,0.31438178,67800.0,67799.0,2.16549843]
[1729551476978,0.32138178,67800.0,67799.0,2.16649843]
[1729551477186,0.32138178,67800.0,67799.0,2.16749843]
[1729551477577,0.32138178,67800.0,67799.0,2.16288625]
[1729551477779,0.32138178,67800.0,67799.0,2.1674982]
[1729551478476,0.32138178,67800.0,67799.0,2.16288625]
[1729551478676,0.32138178,67800.0,67799.0,2.16749838]
[1729551483287,0.32138178,67800.0,67799.0,2.16288625]
[1729551483683,0.32138178,67800.0,67799.0,1.80208625]
[1729551483992,0.32138178,67800.0,67799.0,2.52368625]
[1729551504387,0.32138178,67800.0,67799.0,2.52829848]
[1729551504692,0.32138178,67800.0,67799.0,1.02829848]
[1729551510501,0.32138178,67800.0,67799.0,1.0282985]
[1729551521097,0.32138178,67800.0,67799.0,1.02368625]
[1729551521302,0.32138178,67800.0,67799.0,1.02829851]
[1729551521703,0.32138178,67800.0,67799.0,0.91829851]
[1729551522794,0.54138178,67800.0,67799.0,0.00661226]
[1729551522999,0.54138178,67800.0,67799.0,0.002]
[1729551523000,0.71499378,67800.0,67799.0,0.002]
[1729551523195,0.64122178,67800.0,67792.0,0.05903347]
[1729551523411,0.11,67795.0,67793.0,0.00461298]
[1729551523604,0.138878,67794.0,67790.0,0.05903347]
[1729551523806,0.138878,67794.0,67791.0,0.11461331]
[1729551524014,0.138878,67794.0,67792.0,0.00461331]
[1729551524211,0.138878,67794.0,67791.0,0.11]
[1729551524411,0.073779,67793.0,67792.0,0.00561327]
[1729551524611,0.626299,67793.0,67792.0,0.001]
[1729551524816,0.726139,67793.0,67792.0,0.001]
[1729551525012,0.073783,67790.0,67789.0,0.3608]
[1729551525208,0.073784,67789.0,67785.0,0.54784027]
[1729551525402,0.073784,67789.0,67786.0,0.00461376]
[1729551525403,0.11,67787.0,67786.0,0.00461376]
[1729551525810,0.11,67787.0,67785.0,0.54776027]
[1729551526112,0.11,67787.0,67785.0,0.54680027]
[1729551526313,0.0301,67786.0,67785.0,0.54680027]
[1729551527514,0.3608,67792.0,67785.0,0.54680027]
[1729551527515,0.30038178,67800.0,67799.0,0.073773]
[1729551527720,0.30038178,67800.0,67799.0,0.654573]
[1729551527919,0.30038178,67800.0,67799.0,0.65918533]
[1729551528112,0.30038178,67800.0,67799.0,2.15918533]
[1729551528305,0.30038178,67800.0,67799.0,2.154573]
[1729551528510,0.30038178,67800.0,67799.0,0.654573]
[1729551528715,0.30038178,67800.0,67799.0,0.65918529]
[1729551529015,0.31438178,67800.0,67799.0,2.16018529]
[1729551529204,0.32538178,67800.0,67799.0,2.16118529]
[1729551530812,0.32538178,67800.0,67799.0,2.16745484]
[1729551532213,0.32538178,67800.0,67799.0,2.16118529]
[1729551535607,0.32538178,67800.0,67799.0,2.156573]
[1729551536428,0.32538178,67800.0,67799.0,2.16118541]
[1729551540427,0.32538178,67800.0,67799.0,2.156573]
[1729551543828,0.32538178,67800.0,67799.0,2.16118541]
[1729551549735,0.32538178,67800.0,67799.0,2.156573]
[1729551549940,0.32538178,67800.0,67799.0,2.1611854]
[1729551550732,0.32538178,67800.0,67799.0,2.156573]
[1729551558740,0.32538178,67800.0,67799.0,2.16118541]
[1729551572247,0.32538178,67800.0,67799.0,1.80038541]
[1729551572544,0.32538178,67800.0,67799.0,2.16118541]
[1729551572750,0.32538178,67800.0,67799.0,1.80038541]
[1729551573152,0.32538178,67800.0,67799.0,2.16118541]
[1729551573854,0.32538178,67800.0,67799.0,1.80038541]
[1729551574149,0.32538178,67800.0,67799.0,2.16118541]
[1729551577550,0.32538178,67800.0,67799.0,1.80038541]
[1729551578351,0.32538178,67800.0,67799.0,2.16118541]
[1729551579655,0.32538178,67800.0,67799.0,1.795773]
[1729551579855,0.32538178,67800.0,67799.0,2.16118541]
[1729551581258,0.32538178,67800.0,67799.0,2.22022369]
[1729551581652,0.32538178,67800.0,67799.0,1.85942369]
[1729551581847,0.32538178,67800.0,67799.0,2.22022369]
[1729551582451,0.00069371,67805.0,67799.0,2.32545025]
[1729551582658,0.00069371,67805.0,67804.0,0.24280151]
[1729551582854,0.00069371,67805.0,67804.0,0.18837941]
[1729551583246,0.00069371,67805.0,67804.0,1.683767]
[1729551583452,0.00069371,67805.0,67804.0,1.68837898]
[1729551583751,0.01469371,67805.0,67804.0,1.85738519]
[1729551583956,0.01469371,67805.0,67804.0,1.79837898]
[1729551584153,0.00069371,67805.0,67804.0,1.79837898]
[1729551584354,0.01469371,67805.0,67804.0,1.85836751]
[1729551584663,0.01469371,67805.0,67804.0,1.74836751]
[1729551584964,0.01469371,67805.0,67804.0,1.74936751]
[1729551586350,0.01469371,67805.0,67804.0,1.69037898]
[1729551590659,0.01469371,67805.0,67804.0,1.685767]
[1729551590865,0.01469371,67805.0,67804.0,1.69037896]
[1729551596274,0.01469371,67805.0,67804.0,0.19037896]
[1729551598171,0.01469371,67805.0,67804.0,0.185767]
[1729551598373,0.01469371,67805.0,67804.0,0.19037898]
[1729551598863,0.01469371,67805.0,67804.0,0.185767]
[1729551599064,0.01469371,67805.0,67804.0,0.19037898]
[1729551600670,0.01469371,67805.0,67804.0,0.08037898]
[1729551600869,0.01469371,67805.0,67804.0,0.12458757]
[1729551603760,0.44244,67804.0,67794.0,0.05898853]
[1729551603966,0.073786,67787.0,67781.0,0.073791]
[1729551604167,0.11,67785.0,67783.0,0.11]
[1729551604363,0.09964,67784.0,67781.0,0.00601846]
[1729551604563,0.073791,67783.0,67779.0,0.11]
[1729551604769,0.073791,67783.0,67780.0,0.073793]
[1729551604969,0.09964,67784.0,67782.0,0.11]
[1729551605361,0.09964,67784.0,67778.0,0.3608]
[1729551605362,0.073791,67782.0,67778.0,0.3608]
[1729551605565,0.11,67781.0,67778.0,0.3608]
[1729551606469,0.073794,67780.0,67778.0,0.3608]
[1729551606773,0.11,67781.0,67778.0,0.008]
[1729551606774,0.073794,67779.0,67778.0,0.008]
[1729551607677,0.073794,67779.0,67775.0,0.11]
[1729551607678,0.073794,67779.0,67773.0,0.183801]
[1729551607870,0.11,67777.0,67773.0,0.183801]
[1729551608473,0.11,67777.0,67775.0,0.073799]
[1729551608974,0.11,67777.0,67775.0,0.183799]
[1729551609175,0.183794,67779.0,67775.0,0.183799]
[1729551609375,0.184794,67779.0,67775.0,0.183799]
[1729551609981,0.183794,67779.0,67775.0,0.183799]
[1729551610179,0.183794,67779.0,67775.0,0.185799]
[1729551610484,0.183794,67779.0,67776.0,1.5]
[1729551612787,0.183794,67779.0,67776.0,1.501]
[1729551613379,0.183794,67779.0,67778.0,0.11]
[1729551614383,0.183794,67779.0,67776.0,1.50176]
[1729551614590,0.11,67777.0,67776.0,1.501]
[1729551614770,0.11,67777.0,67776.0,0.001]
[1729551615173,0.11,67777.0,67775.0,0.073799]
[1729551616091,0.11,67777.0,67776.0,0.001]
[1729551616478,0.626437,67777.0,67776.0,0.001]
[1729551616683,0.626437,67777.0,67766.0,0.073808]
[1729551616684,0.073805,67770.0,67766.0,0.073808]
[1729551616881,0.183808,67767.0,67763.0,0.434612]
[1729551617086,0.11,67764.0,67763.0,0.434612]
[1729551618288,0.293811,67764.0,67763.0,0.002]
[1729551618488,0.293811,67764.0,67754.0,0.07108848]
[1729551618489,0.073821,67755.0,67754.0,0.00628848]
[1729551618790,0.073821,67755.0,67747.0,0.434629]
[1729551618791,0.073827,67750.0,67747.0,0.3608]
[1729551619092,0.11,67749.0,67748.0,1.5]
[1729551619296,0.11,67749.0,67748.0,1.61]
[1729551619687,0.11,67749.0,67748.0,0.11]
[1729551620083,0.11,67749.0,67747.0,1.8608]
[1729551620891,0.111,67749.0,67748.0,0.008]
[1729551621291,0.111,67749.0,67747.0,1.86168]
[1729551621292,0.11,67749.0,67747.0,1.87068]
[1729551621487,0.11,67749.0,67747.0,1.8698]
[1729551621889,0.111,67749.0,67747.0,1.8698]
[1729551622084,0.112,67749.0,67748.0,0.008]
[1729551622493,0.185827,67749.0,67748.0,0.008]
[1729551622889,0.184827,67749.0,67747.0,1.87056]
[1729551623085,0.185827,67749.0,67747.0,1.8788]
[1729551623693,0.184827,67749.0,67747.0,1.8698]
[1729551623991,0.073828,67748.0,67747.0,1.8698]
[1729551624389,0.073828,67748.0,67747.0,1.8608]
[1729551624790,0.073828,67748.0,67747.0,1.8698]
[1729551625186,0.073828,67748.0,67747.0,0.3698]
[1729551625499,0.075828,67748.0,67747.0,0.3788]
[1729551626296,0.185828,67748.0,67747.0,0.3788]
[1729551627097,0.184828,67748.0,67747.0,0.009]
[1729551627497,0.07383,67746.0,67745.0,0.11]
[1729551627682,0.17355,67746.0,67745.0,0.11]
[1729551628790,0.17355,67746.0,67745.0,0.112]
[1729551630493,0.17355,67746.0,67745.0,0.114]
[1729551631083,0.07383,67746.0,67745.0,0.187832]
[1729551631282,0.09964,67746.0,67745.0,0.114]
[1729551632286,0.09964,67746.0,67745.0,0.187831]
[1729551634194,0.073829,67748.0,67745.0,0.187831]
[1729551634390,0.09964,67747.0,67745.0,0.187831]
[1729551635499,0.17347,67747.0,67745.0,0.185831]
[1729551635900,0.17347,67747.0,67708.0,0.09812023]
[1729551635901,0.68774,67746.0,67708.0,0.09812023]
[1729551636112,0.68774,67746.0,67659.0,0.71535425]
[1729551636113,0.3608,67707.0,67676.0,0.11363653]
[1729551636410,0.7216,67677.0,67661.0,0.11]
[1729551636595,0.073907,67676.0,67674.0,0.00076]
[1729551636790,0.073907,67676.0,67672.0,0.11]
[1729551636998,0.3608,67680.0,67675.0,0.15951474]
[1729551637190,0.11,67679.0,67672.0,0.11]
[1729551637406,0.3608,67674.0,67672.0,0.11]
[1729551637705,0.3608,67674.0,67664.0,0.11]
[1729551637910,0.3608,67674.0,67673.0,0.15951474]
[1729551638096,0.7216,67674.0,67673.0,0.15951474]
[1729551638695,0.8916,67674.0,67673.0,0.15951474]
[1729551639200,0.8916,67674.0,67673.0,0.16551474]
[1729551640005,0.7226,67674.0,67673.0,0.17151474]
[1729551641202,0.001,67674.0,67673.0,0.17151474]
[1729551642201,0.074909,67674.0,67673.0,0.17151474]
[1729551644316,0.3608,67677.0,67673.0,0.17151474]
[1729551644619,0.073909,67674.0,67673.0,0.006]
[1729551644826,0.073909,67674.0,67640.0,0.073945]
[1729551644827,0.07399,67600.0,67590.0,0.074]
[1729551645111,0.17,67599.0,67591.0,0.3608]
[1729551645419,0.3608,67604.0,67599.0,0.15951474]
[1729551645615,0.3608,67604.0,67603.0,0.52031474]
[1729551645616,0.073986,67604.0,67603.0,0.52031474]
[1729551645815,0.073977,67612.0,67603.0,0.15951474]
[1729551646021,0.3608,67610.0,67604.0,0.0311]
[1729551646202,0.3608,67610.0,67605.0,1.5]
[1729551646407,0.3608,67610.0,67609.0,0.15951474]
[1729551647108,0.3608,67610.0,67609.0,1.65951474]
[1729551648024,0.3608,67610.0,67609.0,1.66051474]
[1729551649117,0.3608,67610.0,67609.0,1.66251474]
[1729551649626,0.3109,67610.0,67609.0,1.83251474]
[1729551649829,0.3608,67621.0,67609.0,2.19131474]
[1729551650038,0.3608,67621.0,67620.0,0.15951474]
[1729551651429,0.3708,67621.0,67620.0,0.16051474]
[1729551651727,0.444767,67621.0,67620.0,0.16051474]
[1729551652323,0.019,67621.0,67620.0,0.16151474]
[1729551652925,0.073963,67625.0,67620.0,0.15951474]
[1729551653236,0.073963,67625.0,67622.0,0.15951474]
[1729551653831,0.073963,67625.0,67623.0,0.15951474]
[1729551654421,0.085963,67625.0,67624.0,0.15951474]
[1729551656026,0.097963,67625.0,67624.0,0.15951474]
[1729551656634,0.085963,67625.0,67624.0,0.16051474]
[1729551656831,0.096963,67625.0,67624.0,0.16151474]
[1729551657020,0.023,67625.0,67624.0,0.002]
[1729551657227,0.025,67625.0,67624.0,0.23547874]
[1729551657725,0.011,67625.0,67624.0,0.23447874]
[1729551657920,0.023,67625.0,67624.0,0.23547874]